fUST/lending_fUST_20251123
["ID","MTS","AMOUNT","RATE_DAILY","PERIOD"]
[394679226,1763863840276,-160.858605,0.00012509,2]
[394679228,1763863840285,-158.171758,0.00012509,2]
[394679229,1763863840294,-153.945547,0.00012509,2]
[394679232,1763863840303,-155.972838,0.00012509,2]
[394679233,1763863840313,-500.0,0.00012552,2]
[394679236,1763863840322,-500.0,0.00012552,2]
[394679237,1763863840331,-446.4904429,0.00012552,2]
[394679239,1763863840341,-488.38989329,0.00012552,2]
[394679245,1763863844146,-11.61010671,0.00012552,2]
[394679246,1763863844157,-500.0,0.00012552,2]
[394679247,1763863844167,-16932.14803258,0.00012553,2]
[394679248,1763863844179,-274.89555446,0.00012553,2]
[394679282,1763864374767,159.0,0.0002,30]
[394679329,1763865036843,-231.517837,8.264e-05,2]
[394679330,1763865036855,-231.517837,8.347e-05,2]
[394679332,1763865036865,-150.0,8.646e-05,2]
[394679334,1763865036878,-173.638378,9.322e-05,2]
[394679336,1763865036889,-466.25203689,0.00010061,2]
[394679338,1763865036899,-165.68623243,0.00010061,2]
[394679339,1763865036910,-177.0,0.00010646,2]
[394679340,1763865036921,-353.29325365,0.00011596,2]
[394679341,1763865036931,-300.0,0.00012445,2]
[394679342,1763865036942,-300.0,0.00012445,2]
[394679343,1763865036953,-300.0,0.00012445,2]
[394679344,1763865036962,-500.0,0.00012445,2]
[394679345,1763865036980,-500.0,0.00012445,2]
[394679346,1763865036991,-500.0,0.00012445,2]
[394679347,1763865037001,-500.0,0.00012445,2]
[394679348,1763865037010,-500.0,0.00012445,2]
[394679349,1763865037020,-500.0,0.00012445,2]
[394679350,1763865037030,-500.0,0.00012445,2]
[394679351,1763865037040,-500.0,0.00012445,2]
[394679352,1763865037050,-500.0,0.00012445,2]
[394679353,1763865037059,-500.0,0.00012445,2]
[394679354,1763865037068,-500.0,0.00012445,2]
[394679355,1763865037077,-500.0,0.00012445,2]
[394679356,1763865037087,-500.0,0.00012445,2]
[394679357,1763865037096,-500.0,0.00012445,2]
[394679358,1763865037105,-500.0,0.00012445,2]
[394679359,1763865037114,-500.0,0.00012445,2]
[394679360,1763865037124,-500.0,0.00012445,2]
[394679361,1763865037133,-154.19887916,0.00012445,2]
[394679362,1763865037142,-500.0,0.00012445,2]
[394679363,1763865037151,-500.0,0.00012445,2]
[394679364,1763865037160,-500.0,0.00012445,2]
[394679365,1763865037169,-341.07148949,0.00012445,2]
[394679366,1763865037178,-500.0,0.00012445,2]
[394679367,1763865037187,-500.0,0.00012445,2]
[394679368,1763865037196,-500.0,0.00012445,2]
[394679369,1763865037205,-411.83952074,0.00012445,2]
[394679370,1763865037214,-500.0,0.00012445,2]
[394679371,1763865037227,-500.0,0.00012445,2]
[394679372,1763865037236,-500.0,0.00012445,2]
[394679373,1763865037245,-500.0,0.00012445,2]
[394679374,1763865037254,-500.0,0.00012445,2]
[394679375,1763865037263,-500.0,0.00012445,2]
[394679376,1763865037273,-500.0,0.00012445,2]
[394679377,1763865037282,-500.0,0.00012445,2]
[394679378,1763865037291,-500.0,0.00012445,2]
[394679379,1763865037299,-500.0,0.00012445,2]
[394679380,1763865037308,-500.0,0.00012445,2]
[394679381,1763865037317,-500.0,0.00012445,2]
[394679382,1763865037326,-24503.2800193,0.00012446,2]
[394679383,1763865037338,-523.4911899,0.00012446,2]
[394679384,1763865037349,-6167.99331978,0.00012446,2]
[394679385,1763865037358,-347.12486652,0.00012499,2]
[394679386,1763865037367,-500.0,0.00012499,2]
[394679387,1763865037376,-500.0,0.00012499,2]
[394679388,1763865037385,-314.80628395,0.00012499,2]
[394679389,1763865037395,-500.0,0.00012499,2]
[394679390,1763865037405,-500.0,0.00012499,2]
[394679391,1763865037414,-500.0,0.00012499,2]
[394679392,1763865037424,-500.0,0.00012499,2]
[394679393,1763865037433,-500.0,0.00012499,2]
[394679394,1763865037442,-500.0,0.00012499,2]
[394679395,1763865037451,-500.0,0.00012499,2]
[394679396,1763865037460,-500.0,0.00012499,2]
[394679397,1763865037473,-167.4835338,0.00012499,2]
[394679398,1763865037482,-157.0,0.000125,2]
[394679399,1763865037491,-157.0,0.000125,2]
[394679400,1763865037500,-30806.9312626,0.000125,2]
[394679401,1763865037511,-1123.02642622,0.000125,2]
[394679432,1763865038280,-2000.0,0.000125,2]
[394679435,1763865038293,-16070.04231118,0.000125,2]
[394679437,1763865038304,-1200.0,0.00012543,2]
[394679439,1763865038313,-151.0,0.00012543,2]
[394679441,1763865038324,-151.0,0.00012543,2]
[394679443,1763865038333,-151.0,0.00012543,2]
[394679444,1763865038342,-151.0,0.00012543,2]
[394679446,1763865038352,-154.60361,0.00012543,2]
[394679448,1763865038362,-165.940648,0.00012543,2]
[394679450,1763865038372,-151.0,0.00012545,2]
[394679452,1763865038382,-151.0,0.00012545,2]
[394679454,1763865038392,-151.0,0.00012545,2]
[394679456,1763865038401,-151.0,0.00012545,2]
[394679459,1763865038412,-151.0,0.00012545,2]
[394679460,1763865038422,-153.062304,0.00012545,2]
[394679463,1763865038431,-154.463945,0.00012545,2]
[394679465,1763865038440,-151.279797,0.00012546,2]
[394679467,1763865038449,-158.198981,0.00012546,2]
[394679469,1763865038460,-344.245,0.00012547,2]
[394679470,1763865038470,-506.83839277,0.00012548,2]
[394679472,1763865038481,-10477.08954003,0.0001263,2]
[394679475,1763865038493,-3434.98,0.0001263,2]
[394679634,1763865230265,517.4,4.437e-05,2]
[394679669,1763866232425,-291.091158,8.264e-05,2]
[394679670,1763866232435,-291.091158,8.347e-05,2]
[394679671,1763866232445,-207.922256,9.322e-05,2]
[394679672,1763866232454,-517.05259197,0.00010061,2]
[394679673,1763866232464,-177.0,0.00010646,2]
[394679674,1763866232474,-294.25148829,0.0001072,2]
[394679675,1763866232484,-353.29325365,0.00012032,2]
[394679676,1763866232494,-300.0,0.00012222,2]
[394679677,1763866232503,-300.0,0.00012222,2]
[394679678,1763866232513,-1200.0,0.00012222,2]
[394679680,1763866232523,-500.0,0.00012223,2]
[394679681,1763866232532,-167.86828516,0.00012223,2]
[394679683,1763866232541,-500.0,0.00012223,2]
[394679685,1763866232551,-239.35543102,0.00012223,2]
[394679687,1763866232562,-500.0,0.00012223,2]
[394679689,1763866232572,-500.0,0.00012223,2]
[394679691,1763866232582,-81.73975119,0.00012223,2]
[394679709,1763866238463,-291.091158,8.181e-05,2]
[394679710,1763866238472,-289.04308485,0.00012222,2]
[394679711,1763866238482,-500.0,0.00012222,2]
[394679712,1763866238491,-500.0,0.00012222,2]
[394679713,1763866238500,-294.09167188,0.00012222,2]
[394679714,1763866238510,-322.07283585,0.00012222,2]
[394679715,1763866238521,-195.94943798,0.00012222,2]
[394679716,1763866238531,-500.0,0.00012222,2]
[394679717,1763866238551,-500.0,0.00012222,2]
[394679718,1763866238561,-500.0,0.00012222,2]
[394679719,1763866238570,-500.0,0.00012222,2]
[394679720,1763866238580,-500.0,0.00012222,2]
[394679721,1763866238589,-500.0,0.00012222,2]
[394679722,1763866238599,-61827.85541928,0.00012224,2]
[394679723,1763866238609,-250.0,0.00012316,2]
[394679724,1763866238619,-250.0,0.00012316,2]
[394679725,1763866238628,-250.0,0.00012316,2]
[394679726,1763866238637,-250.0,0.00012316,2]
[394679727,1763866238646,-250.0,0.00012316,2]
[394679728,1763866238656,-250.0,0.00012316,2]
[394679729,1763866238665,-250.0,0.00012316,2]
[394679730,1763866238675,-250.0,0.00012316,2]
[394679731,1763866238684,-250.0,0.00012316,2]
[394679732,1763866238693,-250.0,0.00012316,2]
[394679733,1763866238703,-258.72271019,0.00012316,2]
[394679734,1763866238713,-32217.47243255,0.00012319,2]
[394679735,1763866238728,-17782.52756745,0.00012319,2]
[394679736,1763866238738,-151.0,0.00012322,2]
[394679737,1763866238747,-151.0,0.00012323,2]
[394679738,1763866238757,-151.0,0.00012323,2]
[394679739,1763866238767,-151.0,0.00012326,2]
[394679740,1763866238776,-151.0,0.00012327,2]
[394679741,1763866238785,-394.37,0.00012329,2]
[394679742,1763866238795,-328.64,0.00012329,2]
[394679743,1763866238804,-273.87,0.00012329,2]
[394679744,1763866238814,-228.22,0.00012329,2]
[394679745,1763866238823,-190.18,0.00012329,2]
[394679746,1763866238832,-158.49,0.00012329,2]
[394679747,1763866238841,-792.46,0.00012329,2]
[394679748,1763866238850,-160.771972,0.000124,2]
[394679749,1763866238860,-151.0,0.000124,2]
[394679750,1763866238870,-151.0,0.000124,2]
[394679751,1763866238879,-275.396,0.00012499,2]
[394679752,1763866238889,-8329.1021682,0.00012501,2]
[394679753,1763866238900,-206.00306196,0.0001263,2]
[394679754,1763866238909,-204.0,0.00012646,2]
[394679755,1763866238919,-1546.0,0.00012673,2]
[394679756,1763866238928,-1546.0,0.00012683,2]
[394679757,1763866238937,-1375.5754253,0.00012708,2]
[394679758,1763866238949,-170.4245747,0.00012708,2]
[394679759,1763866238958,-1546.0,0.00012775,2]
[394679760,1763866238968,-1546.0,0.00012895,2]
[394679761,1763866238978,-1546.0,0.00012897,2]
[394679762,1763866238987,-1546.0,0.00012902,2]
[394679763,1763866238996,-294.25148829,0.0001294,2]
[394679764,1763866239006,-419.44337477,0.00012943,2]
[394679765,1763866239015,-500.0,0.00012943,2]
[394679766,1763866239024,-500.0,0.00012943,2]
[394679767,1763866239033,-500.0,0.00012943,2]
[394679768,1763866239042,-500.0,0.00012943,2]
[394679769,1763866239052,-500.0,0.00012943,2]
[394679770,1763866239061,-500.0,0.00012943,2]
[394679771,1763866239070,-500.0,0.00012943,2]
[394679772,1763866239079,-500.0,0.00012943,2]
[394679773,1763866239089,-168.04061,0.00012943,2]
[394679774,1763866239099,-1546.0,0.00012954,2]
[394679775,1763866239109,-1546.0,0.00013004,2]
[394679776,1763866239118,-1546.0,0.0001307,2]
[394679777,1763866239127,-1546.0,0.00013106,2]
[394679778,1763866239137,-1546.0,0.00013176,2]
[394679779,1763866239147,-442.0,0.00013199,2]
[394679780,1763866239156,-442.0,0.00013219,2]
[394679781,1763866239165,-648.04228534,0.00013252,2]
[394679782,1763866239174,-207.922256,0.00013266,2]
[394679783,1763866239183,-442.0,0.00013371,2]
[394679784,1763866239193,-442.0,0.00013395,2]
[394679785,1763866239202,-235.0,0.00013414,2]
[394679786,1763866239212,-442.0,0.00013442,2]
[394679787,1763866239222,-518.27900615,0.00013491,2]
[394679788,1763866239232,-1000.0,0.00013491,2]
[394679789,1763866239244,-1000.0,0.00013491,2]
[394679790,1763866239253,-1000.0,0.00013491,2]
[394679791,1763866239262,-500.53727022,0.00013491,2]
[394679792,1763866239271,-515.64298282,0.00013491,2]
[394679793,1763866239283,-1000.0,0.00013491,2]
[394679794,1763866239292,-442.0,0.00013542,2]
[394679795,1763866239301,-500.0,0.00013698,2]
[394679796,1763866239312,-500.0,0.00013698,2]
[394679797,1763866239322,-550.69443328,0.00013698,2]
[394679798,1763866239331,-500.0,0.00013698,2]
[394679799,1763866239340,-500.0,0.00013698,2]
[394679800,1763866239349,-506.15121912,0.00013698,2]
[394679801,1763866239358,-151.0,0.00013698,2]
[394679802,1763866239367,-151.0,0.00013698,2]
[394679803,1763866239376,-183.02894,0.00013698,2]
[394679804,1763866239385,-153.362944,0.00013698,2]
[394679805,1763866239394,-500.0,0.00013698,2]
[394679806,1763866239403,-500.0,0.00013698,2]
[394679807,1763866239413,-222.27876999,0.00013698,2]
[394679808,1763866239425,-277.72123001,0.00013698,2]
[394679809,1763866239434,-500.0,0.00013698,2]
[394679810,1763866239443,-83.70836999,0.00013698,2]
[394680058,1763866246654,-400.0,0.00012222,2]
[394680335,1763867445744,-228.714481,8.831e-05,2]
[394680337,1763867445754,-228.714481,8.92e-05,2]
[394680339,1763867445763,-150.0,9.056e-05,2]
[394680341,1763867445773,-852.4299435,9.09e-05,2]
[394680343,1763867445782,-140.32273333,9.999e-05,2]
[394680906,1763867493883,312063.4,0.00015,30]
[394680922,1763867693198,336.70584603,0.00010959,7]
[394680923,1763867710922,202.02350762,0.00010959,7]
[394680924,1763868301153,-200.0,0.00027,120]
[394680925,1763868301657,-200.0,0.00027,120]
[394680926,1763868413045,2590.2663136,0.0001333,9]
[394680927,1763868421377,4939.22939537,0.0001333,9]
[394680961,1763868631721,-2367.34838109,8.358e-05,2]
[394680963,1763868631730,-150.0,8.515e-05,2]
[394680965,1763868631739,-300.0,9.164e-05,2]
[394680967,1763868631749,-1200.0,9.164e-05,2]
[394680969,1763868631758,-1200.0,9.165e-05,2]
[394680971,1763868631767,-300.0,9.165e-05,2]
[394680973,1763868631776,-300.0,9.165e-05,2]
[394680975,1763868631785,-9588.1482783,9.166e-05,2]
[394680977,1763868631794,-463.96204217,9.991e-05,2]
[394680979,1763868631803,-500.0,9.991e-05,2]
[394680981,1763868631812,-500.0,9.991e-05,2]
[394680983,1763868631821,-500.0,9.991e-05,2]
[394680985,1763868631830,-500.0,9.991e-05,2]
[394680987,1763868631839,-500.0,9.991e-05,2]
[394680989,1763868631848,-187.34411069,9.991e-05,2]
[394680991,1763868631857,-500.0,9.991e-05,2]
[394680993,1763868631866,-500.0,9.991e-05,2]
[394680995,1763868631874,-500.0,9.991e-05,2]
[394680998,1763868631883,-500.0,9.991e-05,2]
[394681001,1763868631892,-500.0,9.991e-05,2]
[394681004,1763868631901,-500.0,9.991e-05,2]
[394681007,1763868631910,-500.0,9.991e-05,2]
[394681010,1763868631919,-500.0,9.991e-05,2]
[394681013,1763868631927,-500.0,9.991e-05,2]
[394681015,1763868631936,-500.0,9.991e-05,2]
[394681017,1763868631945,-500.0,9.991e-05,2]
[394681019,1763868631954,-500.0,9.991e-05,2]
[394681021,1763868631964,-500.0,9.991e-05,2]
[394681023,1763868631973,-500.0,9.991e-05,2]
[394681025,1763868631986,-500.0,9.991e-05,2]
[394681027,1763868631995,-500.0,9.991e-05,2]
[394681029,1763868632004,-500.0,9.991e-05,2]
[394681031,1763868632013,-500.0,9.991e-05,2]
[394681033,1763868632023,-500.0,9.991e-05,2]
[394681035,1763868632032,-500.0,9.991e-05,2]
[394681037,1763868632041,-500.0,9.991e-05,2]
[394681039,1763868632050,-500.0,9.991e-05,2]
[394681041,1763868632061,-500.0,9.991e-05,2]
[394681043,1763868632071,-500.0,9.991e-05,2]
[394681045,1763868632080,-500.0,9.991e-05,2]
[394681047,1763868632088,-585.61495236,9.991e-05,2]
[394681049,1763868632098,-500.0,9.991e-05,2]
[394681051,1763868632106,-500.0,9.991e-05,2]
[394681053,1763868632115,-1908.83098205,9.991e-05,2]
[394681055,1763868632124,-1908.83098205,9.991e-05,2]
[394681057,1763868632134,-1908.83098205,9.991e-05,2]
[394681059,1763868632143,-1908.83098205,9.991e-05,2]
[394681061,1763868632152,-1908.83098205,9.991e-05,2]
[394681063,1763868632161,-1908.83098205,9.991e-05,2]
[394681065,1763868632170,-1908.83098205,9.991e-05,2]
[394681067,1763868632179,-1908.83098205,9.991e-05,2]
[394681069,1763868632189,-1908.83098205,9.991e-05,2]
[394681071,1763868632199,-1908.83098205,9.991e-05,2]
[394681073,1763868632208,-1908.83098205,9.991e-05,2]
[394681075,1763868632217,-1908.83098205,9.991e-05,2]
[394681077,1763868632229,-479.71840005,9.991e-05,2]
[394681078,1763868632240,-334.45923056,9.991e-05,2]
[394681079,1763868632254,-344.442,9.991e-05,2]
[394681080,1763868632265,-750.21135144,9.991e-05,2]
[394681081,1763868632274,-1908.83098205,9.991e-05,2]
[394681082,1763868632283,-1908.83098205,9.991e-05,2]
[394681083,1763868632292,-1908.83098205,9.991e-05,2]
[394681084,1763868632301,-1908.83098205,9.991e-05,2]
[394681085,1763868632310,-1908.83098205,9.991e-05,2]
[394681086,1763868632319,-1908.83098205,9.991e-05,2]
[394681087,1763868632328,-1908.83098205,9.991e-05,2]
[394681088,1763868632337,-1908.83098205,9.991e-05,2]
[394681089,1763868632346,-1908.83098205,9.991e-05,2]
[394681090,1763868632355,-1908.83098205,9.991e-05,2]
[394681091,1763868632364,-1908.83098205,9.991e-05,2]
[394681092,1763868632373,-1908.83098205,9.991e-05,2]
[394681093,1763868632382,-1908.83098205,9.991e-05,2]
[394681094,1763868632391,-1908.83098205,9.991e-05,2]
[394681095,1763868632400,-1908.83098205,9.991e-05,2]
[394681096,1763868632409,-1908.83098205,9.991e-05,2]
[394681097,1763868632418,-1908.83098205,9.991e-05,2]
[394681098,1763868632426,-1908.83098205,9.991e-05,2]
[394681099,1763868632437,-1908.83098205,9.991e-05,2]
[394681100,1763868632445,-1908.83098205,9.991e-05,2]
[394681101,1763868632454,-1908.83098205,9.991e-05,2]
[394681102,1763868632463,-1908.83098205,9.991e-05,2]
[394681103,1763868632472,-1908.83098205,9.991e-05,2]
[394681104,1763868632482,-1908.83098205,9.991e-05,2]
[394681105,1763868632491,-1908.83098205,9.991e-05,2]
[394681106,1763868632499,-1908.83098205,9.991e-05,2]
[394681107,1763868632508,-1908.83098205,9.991e-05,2]
[394681108,1763868632518,-1908.83098205,9.991e-05,2]
[394681109,1763868632527,-1926.505343,9.991e-05,2]
[394681110,1763868632536,-1926.505343,9.991e-05,2]
[394681111,1763868632545,-1926.505343,9.991e-05,2]
[394681112,1763868632554,-1926.505343,9.991e-05,2]
[394681113,1763868632563,-1926.505343,9.991e-05,2]
[394681114,1763868632572,-1926.505343,9.991e-05,2]
[394681115,1763868632582,-1926.505343,9.991e-05,2]
[394681116,1763868632591,-1926.505343,9.991e-05,2]
[394681117,1763868632600,-1926.505343,9.991e-05,2]
[394681118,1763868632610,-1926.505343,9.991e-05,2]
[394681119,1763868632619,-1926.505343,9.991e-05,2]
[394681120,1763868632628,-1926.505343,9.991e-05,2]
[394681121,1763868632637,-1926.505343,9.991e-05,2]
[394681122,1763868632647,-1926.505343,9.991e-05,2]
[394681123,1763868632656,-1926.505343,9.991e-05,2]
[394681124,1763868632666,-1926.505343,9.991e-05,2]
[394681125,1763868632675,-1926.505343,9.991e-05,2]
[394681126,1763868632685,-13439.0,0.0001,2]
[394681127,1763868632695,-455.39345121,0.00010061,2]
[394681128,1763868632704,-190.0,0.0001008,2]
[394681129,1763868632713,-1263.0,0.0001008,2]
[394681130,1763868632722,-265.0,0.00010081,2]
[394681131,1763868632731,-353.29325365,0.00010302,2]
[394681132,1763868632740,-177.0,0.00010515,2]
[394681133,1763868632749,-152.080956,0.00010959,2]
[394681134,1763868632758,-151.0,0.00010959,2]
[394681135,1763868632767,-151.0,0.00010959,2]
[394681136,1763868632776,-151.0,0.00010959,2]
[394681137,1763868632784,-151.0,0.00010959,2]
[394681138,1763868632793,-151.0,0.00010959,2]
[394681139,1763868632802,-296.302186,0.00010959,2]
[394681140,1763868632811,-151.0,0.00010959,2]
[394681141,1763868632820,-151.0,0.00010959,2]
[394681142,1763868632829,-151.0,0.00010959,2]
[394681143,1763868632838,-668.51346694,0.0001127,2]
[394681144,1763868632846,-618.5,0.00012329,2]
[394681145,1763868632856,-668.51346694,0.00012391,2]
[394681146,1763868632865,-196.040984,0.00012445,2]
[394681147,1763868632874,-204.0,0.00012515,2]
[394681148,1763868632883,-220.317,0.00012683,2]
[394681149,1763868632892,-1591.36565117,0.000129,2]
[394681150,1763868632902,-2024.9063255,0.00013064,2]
[394681151,1763868632911,-2273.1554798,0.00013262,2]
[394681152,1763868632921,-668.51346694,0.00013511,2]
[394681153,1763868632931,-5728.77,0.00013698,2]
[394681154,1763868632940,-5728.77,0.00013698,2]
[394681155,1763868632949,-5728.77,0.00013698,2]
[394681156,1763868632958,-5728.77,0.00013698,2]
[394681157,1763868632967,-5728.77,0.00013698,2]
[394681158,1763868632977,-3614.2851251,0.00013698,2]
[394681159,1763868632991,-763.65044333,0.00013698,2]
[394681188,1763868637827,-463.0,0.00013698,2]
[394681315,1763869832045,-473.96907565,0.00010061,2]
[394681317,1763869832054,-150.0,0.00010347,2]
[394681319,1763869832063,-1518.6797442,0.00011697,2]
[394681321,1763869832072,-250.0,0.00011886,2]
[394681323,1763869832081,-167.25750425,0.00012345,2]
[394681325,1763869832090,-177.0,0.00012347,2]
[394681327,1763869832099,-167.25750425,0.00012537,2]
[394681329,1763869832108,-167.25750425,0.00012729,2]
[394681331,1763869832117,-167.25750425,0.00012921,2]
[394681333,1763869832126,-50000.0,0.00012933,2]
[394681335,1763869832135,-200.0,0.00013031,2]
[394681337,1763869832144,-300.0,0.00013031,2]
[394681338,1763869832153,-1200.0,0.00013031,2]
[394681342,1763869832162,-500.0,0.00013032,2]
[394681345,1763869832172,-500.0,0.00013032,2]
[394681348,1763869832181,-500.0,0.00013032,2]
[394681351,1763869832190,-500.0,0.00013032,2]
[394681352,1763869832199,-500.0,0.00013032,2]
[394681354,1763869832208,-500.0,0.00013032,2]
[394681356,1763869832217,-500.0,0.00013032,2]
[394681357,1763869832226,-500.0,0.00013032,2]
[394681358,1763869832235,-500.0,0.00013032,2]
[394681359,1763869832244,-500.0,0.00013032,2]
[394681360,1763869832253,-500.0,0.00013032,2]
[394681361,1763869832263,-500.0,0.00013032,2]
[394681362,1763869832272,-500.0,0.00013032,2]
[394681363,1763869832281,-500.0,0.00013032,2]
[394681364,1763869832291,-464.97620709,0.00013032,2]
[394681365,1763869832310,-35.02379291,0.00013032,2]
[394681366,1763869832319,-500.0,0.00013032,2]
[394681367,1763869832330,-500.0,0.00013032,2]
[394681368,1763869832341,-500.0,0.00013032,2]
[394681369,1763869832350,-500.0,0.00013032,2]
[394681370,1763869832360,-500.0,0.00013032,2]
[394681371,1763869832369,-500.0,0.00013032,2]
[394681372,1763869832381,-500.0,0.00013032,2]
[394681373,1763869832390,-500.0,0.00013032,2]
[394681374,1763869832400,-500.0,0.00013032,2]
[394681375,1763869832410,-500.0,0.00013032,2]
[394681376,1763869832419,-500.0,0.00013032,2]
[394681377,1763869832427,-500.0,0.00013032,2]
[394681378,1763869832436,-500.0,0.00013032,2]
[394681379,1763869832446,-500.0,0.00013032,2]
[394681380,1763869832456,-500.0,0.00013032,2]
[394681381,1763869832465,-500.0,0.00013032,2]
[394681382,1763869832474,-500.0,0.00013032,2]
[394681383,1763869832483,-500.0,0.00013032,2]
[394681384,1763869832492,-500.0,0.00013032,2]
[394681385,1763869832501,-500.0,0.00013032,2]
[394681386,1763869832510,-500.0,0.00013032,2]
[394681387,1763869832519,-500.0,0.00013032,2]
[394681388,1763869832528,-500.0,0.00013032,2]
[394681389,1763869832538,-152.73989656,0.00013032,2]
[394681390,1763869832547,-500.0,0.00013032,2]
[394681391,1763869832556,-500.0,0.00013032,2]
[394681392,1763869832565,-500.0,0.00013032,2]
[394681393,1763869832575,-400.94420418,0.00013032,2]
[394681394,1763869832584,-500.0,0.00013032,2]
[394681395,1763869832593,-500.0,0.00013032,2]
[394681396,1763869832612,-500.0,0.00013032,2]
[394681397,1763869832621,-500.0,0.00013032,2]
[394681398,1763869832631,-500.0,0.00013032,2]
[394681399,1763869832640,-500.0,0.00013032,2]
[394681400,1763869832650,-500.0,0.00013032,2]
[394681401,1763869832660,-500.0,0.00013032,2]
[394681402,1763869832670,-500.0,0.00013032,2]
[394681403,1763869832680,-1518.6797442,0.00013033,2]
[394681404,1763869832689,-463.03334248,0.00013109,2]
[394681405,1763869832698,-500.0,0.00013109,2]
[394681406,1763869832708,-500.0,0.00013109,2]
[394681407,1763869832717,-500.0,0.00013109,2]
[394681408,1763869832726,-500.0,0.00013109,2]
[394681409,1763869832736,-500.0,0.00013109,2]
[394681410,1763869832745,-500.0,0.00013109,2]
[394681411,1763869832756,-500.0,0.00013109,2]
[394681412,1763869832766,-500.0,0.00013109,2]
[394681413,1763869832776,-500.0,0.00013109,2]
[394681414,1763869832787,-500.0,0.00013109,2]
[394681415,1763869832796,-500.0,0.00013109,2]
[394681416,1763869832805,-500.0,0.00013109,2]
[394681417,1763869832814,-364.39705725,0.00013109,2]
[394681418,1763869832824,-500.0,0.00013109,2]
[394681419,1763869832834,-245.01165691,0.00013109,2]
[394681420,1763869832843,-167.25750425,0.00013112,2]
[394681421,1763869832853,-241.677,0.00013203,2]
[394681422,1763869832863,-167.25750425,0.00013304,2]
[394681423,1763869832873,-167.25750425,0.00013496,2]
[394681424,1763869832883,-500.0,0.00013573,2]
[394681425,1763869832892,-500.0,0.00013573,2]
[394681426,1763869832901,-504.63524012,0.00013573,2]
[394681427,1763869832913,-356.99694886,0.00013573,2]
[394681428,1763869832923,-503.4114239,0.00013573,2]
[394681429,1763869832932,-486.2820005,0.00013573,2]
[394681430,1763869832941,-505.78179694,0.00013573,2]
[394681431,1763869832950,-502.24762386,0.00013573,2]
[394681432,1763869832959,-4333.57,0.00013698,2]
[394681433,1763869832968,-4333.57,0.00013698,2]
[394681434,1763869832978,-4333.57,0.00013698,2]
[394681435,1763869832988,-4333.57,0.00013698,2]
[394681436,1763869832997,-4333.57,0.00013698,2]
[394681437,1763869833006,-4333.57,0.00013698,2]
[394681438,1763869833015,-4333.57,0.00013698,2]
[394681439,1763869833024,-4333.57,0.00013698,2]
[394681440,1763869833033,-4333.57,0.00013698,2]
[394681441,1763869833043,-4333.57,0.00013698,2]
[394681442,1763869833052,-4333.57,0.00013698,2]
[394681443,1763869833061,-4333.57,0.00013698,2]
[394681444,1763869833070,-4333.57,0.00013698,2]
[394681445,1763869833079,-4333.57,0.00013698,2]
[394681446,1763869833088,-4333.57,0.00013698,2]
[394681447,1763869833096,-4333.57,0.00013698,2]
[394681448,1763869833106,-4333.57,0.00013698,2]
[394681449,1763869833115,-4333.57,0.00013698,2]
[394681450,1763869833125,-4333.57,0.00013698,2]
[394681451,1763869833134,-4333.57,0.00013698,2]
[394681452,1763869833143,-4333.57,0.00013698,2]
[394681453,1763869833153,-4333.57,0.00013698,2]
[394681454,1763869833162,-2351.29646484,0.00013698,2]
[394681463,1763869838223,-1982.27353516,0.00013698,2]
[394681464,1763869838236,-1353.17249172,0.00013698,2]
[394681465,1763869838279,-2980.56070096,0.00013698,2]
[394681466,1763869838288,-500.0,0.00013698,2]
[394681467,1763869838297,-500.0,0.00013698,2]
[394681468,1763869838307,-500.0,0.00013698,2]